Cogmind - Beta 15 @@@ ROGUE MODE // 2025.05.23 @ 21:28:13 Player: DannyCarnage Result: Destroyed by D-53 Grenadier with Mini Grenade Launcher Performance ------------- Evolutions (0) 0 Regions Visited (2) 400 Robots Destroyed (15) 75 Value Destroyed (283) 283 Prototype IDs (0) 0 Alien Tech Used (0) 0 Bonus (0) 0 TOTAL SCORE: 758 Bonus ------- None Cogmind --------- Core Integrity 0/250 Matter 159/300 Energy 100/100 System Corruption 0% Temperature Cool (0) Movement Core (300) Ox5 Location -10/Mines Parts ------- > --- POWER (1) -------- (None) > --- PROPULSION (2) --- (None) > --- UTILITY (2) ------ Medium Storage Unit Sensor Array > --- WEAPON (2) ------- Ion Cannon > --- INVENTORY (10) --- Ion Engine Light Nuclear Core Large Storage Unit High-capacity Battery (250) Hacking Suite System Shield Mining Laser Peak State ------------ > --- POWER ------------ Ion Engine > --- PROPULSION ------- Aluminum Leg Aluminum Leg > --- UTILITY ---------- Medium Storage Unit Sensor Array > --- WEAPON ----------- Ion Cannon Light Assault Rifle > --- INVENTORY -------- Ion Engine Light Ion Engine Light Nuclear Core Aluminum Leg Aluminum Leg Small Storage Unit Large Storage Unit High-capacity Battery Grenade Launcher Mining Laser [Rating: 10] Favorites ----------- Power Ion Engine Engine Ion Engine Propulsion Aluminum Leg Treads Light Treads Leg Aluminum Leg Utility Seismic Detector Device Seismic Detector Storage Medium Storage Unit Weapon Light Assault Rifle Energy Gun Medium Laser Energy Cannon Ion Cannon Ballistic Gun Light Assault Rifle Launcher Grenade Launcher Special Weapon Mining Laser Build | -11 -10 -10 ------- Run | Yrd Mat Min Slots Evolved . | . . . Power . | . . . Propulsion . | . . . Utility . | . . . Weapon . | . . . Parts Attached 22 | 8 7 7 Power 3 | 1 1 1 Engine 3 | 1 1 1 Core . | . . . Reactor . | . . . Propulsion 7 | 3 1 3 Treads 2 | 2 . . Leg 5 | 1 1 3 Wheel . | . . . Hover . | . . . Flight . | . . . Utility 6 | 2 2 2 Device 3 | 1 1 1 Storage 3 | 1 1 1 Processor . | . . . Hackware . | . . . Protection . | . . . Artifact . | . . . Weapon 6 | 2 3 1 Energy Gun 2 | 1 1 . Energy Cannon 1 | . . 1 Ballistic Gun 1 | 1 . . Ballistic Cannon . | . . . Launcher 1 | . 1 . Special Weapon 1 | . 1 . Impact Weapon . | . . . Slashing Weapon . | . . . Piercing Weapon . | . . . Special Melee Weapon . | . . . Unidentified Prototypes . | . . . Parts Lost 8 | . . 8 Power 1 | . . 1 Propulsion 4 | . . 4 Utility 1 | . . 1 Weapon 2 | . . 2 Highest Loss Streak 7 | . . 7 To Critical Strikes . | . . . Average Backups 8 | 4 7 9 Power 2 | . 2 2 Propulsion 1 | 1 1 1 Utility 2 | . 2 3 Weapon 2 | 1 2 2 Tool/Special . | . . . Unused Backups 6 | . . 6 Power 3 | . . 3 Propulsion . | . . . Utility 3 | . . 3 Weapon . | . . . Tool/Special . | . . . Average Slot Usage (%) 98 | . 99 98 Engine 13 | . 14 13 Treads 3 | . 6 . Leg 23 | . 21 27 Device 13 | . 13 12 Storage 14 | . 14 14 Energy Gun 15 | . 18 10 Energy Cannon 1 | . . 2 Ballistic Gun 10 | . 7 13 Peak Build Rating 10 | 7 8 10 Average Rating 7 | 5 6 7 On Entrance 4 | . 7 7 Naked Turns . | . . . Heaviest Build 25 | 12 19 25 Greatest Support 40 | 40 40 20 Greatest Overweight (x) 5 | . 1 5 Average Overweight (x) . | . . . Largest Inventory Capacity 10 | 8 10 10 Average Capacity 8 | 7 8 10 Most Carried 10 | 6 10 10 Average Carried 8 | 4 7 9 Final Capacity 10 | 8 10 10 Final Carried 9 | 6 9 7 Class Distribution -------------------- 100% | Mutant Dominant Class ---------------- Mutant | -10/Materials Mutant | -10/Mines Resources | -11 -10 -10 ----------- Run | Yrd Mat Min Matter Collected 528 | 292 58 178 Remotely . | . . . Salvage Created 379 | 109 58 212 Parts 35 | 10 10 15 Haulers Intercepted . | . . . Recyclers Shooed 1 | 1 . . Parts Field Recycled . | . . . Retrieved Matter . | . . . Parts Self-Destructed . | . . . Prevented . | . . . Kills | -11 -10 -10 ------- Run | Yrd Mat Min Combat Hostiles Destroyed 20 | . 4 16 Guns 5 | . 3 2 Cannons 2 | . . 2 AOE 12 | . 1 11 Classes Destroyed 5 | 2 2 1 Tunneler 3 | 2 . 1 Recycler 1 | 1 . . Swarmer 6 | . 3 3 Grunt 5 | . 1 4 Assembled 9 | . . 9 Best Kill Streak 9 | 3 3 9 Combat Bots Only 9 | . 3 9 Max Kills in Single Turn 3 | 1 1 3 Gunslinging . | . . . Exploded 3 | . 1 3 Melee . | . . . Uniques/NPCs Destroyed . | . . . Combat | -11 -10 -10 -------- Run | Yrd Mat Min Hostile Shots Fired 87 | . 17 70 Missed 21 | . 5 16 Hits 66 | . 12 54 Melee 7 | . . 7 Projectile 59 | . 12 47 AOE 6 | . . 6 Part Disruptions 2 | . . 2 Damage Taken 1115 | 26 105 984 Core 257 | . 19 238 Absorbed by Shields . | . . . Core Remaining (%) 100 | 100 . . Volleys Fired 51 | 12 17 22 Largest 2 | 2 2 2 Hottest 100 | 60 100 90 Shots Fired 92 | 24 30 38 Gun 73 | 24 22 27 Cannon 2 | . . 2 Launcher 13 | . 4 9 Special 4 | . 4 . Kinetic 29 | 12 2 15 Thermal 30 | . 16 14 Explosive 13 | . 4 9 Electromagnetic 20 | 12 8 . Robot Hit Streak 9 | 4 4 9 Robot Miss Streak 3 | 3 2 2 Penetration Max . | . . . Secondary Targets . | . . . Shots Hit Robots 43 | 12 11 20 Core Hits 44 | 5 4 35 Critical Kills . | . . . Critical Parts Destroyed . | . . . Critical Strikes 2 | 1 . 1 Burn 1 | . . 1 Corrupt 1 | 1 . . Melee Attacks . | . . . Impact . | . . . Slashing . | . . . Piercing . | . . . Sneak Attacks . | . . . Combat Hostiles . | . . . Follow-up Attacks . | . . . Damage Inflicted 1592 | 146 236 1210 Guns 388 | 123 109 156 Cannons 45 | . . 45 Explosions 1159 | 23 127 1009 Melee . | . . . Ramming . | . . . Kinetic 94 | 42 . 52 Thermal 211 | 23 39 149 Explosive 1136 | . 127 1009 Electromagnetic 151 | 81 70 . Impact . | . . . Slashing . | . . . Piercing . | . . . Highest Corruption . | . . . Average Corruption . | . . . Corruption Purged . | . . . Corruption Blocked . | . . . Overload Shots . | . . . Overflow Damage 102 | . 10 92 Projectiles . | . . . Explosions 102 | . 10 92 Melee . | . . . Knockbacks . | . . . Impact . | . . . Kinetic . | . . . Secondary . | . . . Self-Inflicted Damage 61 | 26 . 35 Shots 4 | 1 . 3 Rammed . | . . . Targets Rammed . | . . . Kicked . | . . . Crushed . | . . . Highest Temperature 180 | 52 180 154 Average Temperature 45 | 19 52 47 Received Heat Transfer 229 | . 18 211 Siege Activations . | . . . Martial Activations . | . . . Shielding Activations . | . . . Robots Disrupted . | . . . Combat Hostiles . | . . . Robots Corrupted . | . . . Combat Hostiles . | . . . Parts Fried . | . . . Impact Corruptions . | . . . Robots Melted 1 | . . 1 Combat Hostiles 1 | . . 1 Parts Melted 1 | . . 1 Heat Transferred 605 | 50 111 444 Parts Sabotaged . | . . . Parts Stolen . | . . . Parts Stripped . | . . . Power Chain Reactions 1 | 1 . . Alert | -11 -10 -10 ------- Run | Yrd Mat Min Maximum Alert Level . | . . . Low Security (%) 100 | 100 100 100 Level 1 . | . . . Level 2 . | . . . Level 3 . | . . . Level 4 . | . . . Level 5 . | . . . High Security . | . . . Max Security . | . . . Peak Influence 111 | 10 69 111 Initial 1 | . . 1 Average 30 | 1 17 54 Influence Increases 394 | 15 139 240 Destroy 0b10 Robot/C 220 | . 80 140 Destroy 0b10 Robot/NC 20 | 15 . 5 Destroy Leader 50 | . 20 30 Successful Hack 18 | . 18 . Destroy Structure 71 | . 21 50 Lose Combat Pursuer 15 | . . 15 Influence Decreases 394 | 15 134 245 Entered New Map 4 | . . 4 Time Decay 332 | 15 134 183 Lost Part 58 | . . 58 Squads Dispatched 2 | . 1 1 Investigation 1 | . . 1 Extermination . | . . . Reinforcement 1 | . 1 . Assault . | . . . Garrison . | . . . Intercept . | . . . Searches Triggered . | . . . Construction Impeded . | . . . Haulers Reinforced . | . . . Active Scanning Responses . | . . . Cargo Convoy Interrupts . | . . . Stealth | -11 -10 -10 --------- Run | Yrd Mat Min Distress Signals 1 | . 1 . Communications Jammed . | . . . Distress Signals . | . . . Times Spotted 39 | . 11 28 Peak Tracking Total 17 | . 4 17 Tactical Retreats 1 | . . 1 Traps | -11 -10 -10 ------- Run | Yrd Mat Min Traps Triggered 1 | . 1 . Indirectly . | . . . Trap Hack Attempts . | . . . Triggered . | . . . Disarmed . | . . . Reprogrammed . | . . . Reused . | . . . Traps Extracted . | . . . Installed . | . . . Triggered . | . . . Machines | -11 -10 -10 ---------- Run | Yrd Mat Min Machines Disabled . | . . . Max in Single Turn . | . . . Machines Repaired . | . . . Machines Dismantled . | . . . Machines Sabotaged . | . . . Overloaded Fab Kills . | . . . Hacking | -11 -10 -10 --------- Run | Yrd Mat Min Machines Accessed 5 | . 3 2 Terminals 3 | . 3 . Fabricators . | . . . Repair Stations . | . . . Recycling Units . | . . . Scanalyzers . | . . . Garrison Access . | . . . Total Hacks 11 | . 9 2 Successful 6 | . 4 2 Failed 5 | . 5 . Catastrophic . | . . . Database Lockouts . | . . . Manual 8 | . 8 . Terminals 9 | . 9 . Fabricators . | . . . Repair Stations . | . . . Recycling Units . | . . . Scanalyzers . | . . . Garrison Access . | . . . Terminal Hacks 4 | . 2 2 Open Door 2 | . . 2 Branch Access Points 1 | . 1 . Unreport Threat 1 | . 1 . Fabricator Hacks . | . . . Repair Station Hacks . | . . . Recycling Unit Hacks . | . . . Scanalyzer . | . . . Garrison Access Hacks . | . . . Unauthorized Hacks 2 | . 2 . Terminals 2 | . 2 . Botnet 2 | . 2 . Fabricators . | . . . Repair Stations . | . . . Recycling Units . | . . . Scanalyzers . | . . . Garrison Access . | . . . Data Cores Recovered . | . . . Used . | . . . Hacking Detections 3 | . 3 . Full Trace Events 1 | . 1 . Feedback Events . | . . . Feedback Blocked . | . . . Robot Schematics Acquired . | . . . Robots Built . | . . . Authchips . | . . . Time . | . . . Total Robot Build Rating . | . . . Part Schematics Acquired . | . . . Parts Built . | . . . Authchips . | . . . Time . | . . . Total Part Build Rating . | . . . Parts Repaired . | . . . Time . | . . . Parts Recycled . | . . . Recycled Matter . | . . . Retrieved Matter . | . . . Retrieved Components . | . . . Parts Scanalyzed . | . . . Part Schematics Acquired . | . . . Parts Damaged . | . . . Bothacking | -11 -10 -10 ------------ Run | Yrd Mat Min Used RIF Installer . | . . . Robots Hacked . | . . . Non-combat . | . . . Combat . | . . . Robot Hacks Applied . | . . . Relay Couplers Released . | . . . Fabnet Peak Effective % . | . . . Robots Rewired . | . . . Allies Hacked . | . . . Hacks Repelled . | . . . Allies | -11 -10 -10 -------- Run | Yrd Mat Min Total Allies . | . . . Largest Group . | . . . Highest-Rated Group . | . . . Highest-Rated Ally . | . . . Total Orders . | . . . Ally Attacks . | . . . Total Damage . | . . . Kills . | . . . Allies Corrupted . | . . . Allies Melted . | . . . Intel | -11 -10 -10 ------- Run | Yrd Mat Min Active Infowar (turns) 1053 | 32 575 446 Sensors 165 | . . 165 Seismic 888 | 32 575 281 Robot Analysis Total . | . . . Derelict Logs Recovered 1 | . . 1 Drone Launches . | . . . Drone Recoveries . | . . . Exploration | -11 -10 -10 ------------- Run | Yrd Mat Min Turns Passed 1209 | 148 578 483 Spaces Moved 654 | 67 285 302 Core 10 | 9 . 1 Treads 120 | 50 70 . Legs 524 | 8 215 301 Wheels . | . . . Hover . | . . . Flight . | . . . Fastest Speed 50 | 50 120 120 Average Speed 131 | 140 130 130 Slowest Speed 300 | 160 190 300 Overloaded Moves . | . . . Propulsion Burnouts . | . . . Robots Hopped . | . . . Potential Cave-ins . | . . . Cave-ins Triggered . | . . . Exploration Rate (%) 32 | 7 37 53 Regions Visited 2 Branch Regions 1 Pre-discovered Areas 1 | . . 1 Known Exits Taken 1 | . 1 . Unknown Exits Taken 1 | 1 . . Scrap Searched 1 | . . 1 Spaces Dug 4 | . 4 . Terrain Destroyed 101 | 6 30 65 Melee . | . . . Projectile 4 | . 4 . AOE 97 | 6 26 65 Terrain Rammed . | . . . Walls Destroyed . | . . . Machines Disabled . | . . . Actions | -11 -10 -10 --------- Run | Yrd Mat Min Total 904 | 98 450 356 Wait 132 | . 123 9 Move 652 | 66 284 302 Hop . | . . . Pick Up 23 | 12 7 4 Fast Attach 5 | 1 3 1 Attach 11 | 6 . 5 Detach 1 | . . 1 Swap 19 | 1 11 7 Drop 10 | . 5 5 Fire 51 | 12 17 22 Melee . | . . . Ram . | . . . Kick . | . . . Crush . | . . . Escape Stasis . | . . . Rewire . | . . . Trap . | . . . Miscellaneous . | . . . Route ------- -11/Scrapyard -10/Materials (discovered 2 exits: [*Mat] / *Min) -10/Mines (discovered 2 exits: [*Mat] / [*Sub]) History --------- Turn | Location | Event 8 | -11/Scrapyard | Discovered new exit (range 15) 149 | -11/Scrapyard | Entered Materials 173 | -10/Materials | Discovered new exit (range 16) 259 | -10/Materials | Discovered new exit (range 13) 306 | -10/Materials | Build established: Mutant 314 | -10/Materials | Identified exit to Mines 727 | -10/Materials | Entered Mines 733 | -10/Mines | Met a Derelict who couldn't figure out how to use a Trap Extractor 802 | -10/Mines | Found a hidden stash of uninstalled traps 877 | -10/Mines | Learned location of Recycling (-8) 953 | -10/Mines | Discovered new exit (range 6) 977 | -10/Mines | Discovered new exit (range 11) 1105 | -10/Mines | Met a Derelict shopkeep closing up shop 1175 | -10/Mines | Assembled infested the area 1204 | -10/Mines | Core integrity fell below 50% 1209 | -10/Mines | Core integrity fell below 20% 1210 | -10/Mines | Destroyed by D-53 Grenadier with Mini Grenade Launcher Last Messages --------------- 01193_ Destroyed Asb. Hover Unit. 01193_ as-23171 destroyed. 01193_ Destroyed Asb. F-torch. 01193_ Destroyed Asb. Hover Unit. 01193_ as-03849 destroyed. 01193_ Aluminum Leg destroyed. 01199_ Grenade Launcher destroyed. 01202_ Ion Engine destroyed. 01203_ C-30 ARC bursts open, deploying its payload. 01203_ D-53 Grenadier unfolds itself. 01203_ as-98454 destroyed. 01203_ as-95529 destroyed. 01203_ as-73815 destroyed. 01203_ as-70287 destroyed. 01205_ as-33796 destroyed. 01205_ as-71179 destroyed. 01205_ as-49714 destroyed. 01205_ as-81365 destroyed. 01205_ Aluminum Leg destroyed. 01207_ Lgt. Assault Rifle destroyed. Map ----- +----------------------------------------------------+ | ????###### = #????????????????????????????? | | ???## ### # ##????????????????????????????? | | ???# ## ## # #????????????????????????????? | | ???# ## #####????????????????????????????? | | ???# ## #????????????????????????????????? | | ##### ##### ###??????????????????????????????? | | ## ! ### #???????????????######?????????? | | "" ## # #### #??????????????##""""##????????? | | "" ## ## #?# #??????????????#"][!]"#????????? | | "" ## # #?# #??????????????#"!^/*"#????????? | | ## # #?# #???????????????# !/###???????? | | # #?# ## #### #######????????### ## ##### ## | | #?# # ##???????# X | | #?# # ##?###### ###### | | # ### ## # ####### ### ##??????? | | # #######?????# ?## ##### ##???????? | | # ###########?????## # ###########????????? | | #??#""""""#??????####### #??????????????? | | ##?#*!!!!!#?????????##### #??????????????? | | #### [##????????## ### ##??????????????? | | #%! ### !#????????## #######???????????????? | | ##[ ## ###??????## ##???????????????????? | | ?## X #####??# ##??????????????????? | | ??# # #### #??????????????????? | | ### ##??????????????????? | | ### t @ ##?????????????????? | | #?## ### dd ####??????????????? | | #??## ##?### ##?????????????? | | ##### #######????# #?????????????? | | ##??????????# #?????????????? | | ##### #???????????## ##?????????????? | | ????## #???????????## ##?????????????? | | ?????# #???????????# ##????????????? | | ????# ##???????????# #????????????? | | ??? ##???????????## #???????????? | | ?? ##????????????# ## #???????????? | | ? ##??????? #?# #???????????? | | ##???????# #??# #??????????? | | #?????????# ### a #???# #??????????? | | #??????????#????# # ##????###??????????? | | ????????????????# # ??????????????????? | | ? #??????????????? ?# % ??????????????????? | | ?????????????????? ?##### ??????????????????? | | ????????????????? ??????? *%??????????????????? | | ??????????????? ??????? !??????????????????? | | ???????????????? ???????? ??????????????????? | | ????????????????? ?????????? ??????????????????? | | ???????????????????????????? ?????????????????? | | ????????????????????????????? ??????????????????? | | ????????????????????????????? ???????????????????? | +----------------------------------------------------+ Best States ------------- Heat Dissipation 25 Energy Generation 10 Energy Capacity 500 Matter Stores 300 Matter Capacity 300 Sight Range 16 Robot Scan Range 14 Terrain Scan Density 10 Evasion (%) 55 Recoil Reduction 2 Item Schematics ----------------- None Robot Schematics ------------------ None Fabricated ------------ Nothing Repaired ---------- Nothing Alien Tech Used ----------------- None Achievements -------------- True Hacker Challenges ------------ None Game ------ Seed OmegaMyomerParser Manual? 0 Play Time 00:25:36 Cumulative 10.4 hours Start 2025.05.23 @ 21:00:46 End 2025.05.23 @ 21:28:13 Sessions 1 Manual Loads 0 Difficulty Rogue Special Mode None Game No. 12 Rogue 12 Adventurer 0 Explorer 0 Win Type - Total 0 Types 0/0/0/0/0/0/0/0/0/0 Lore% 9 Gallery% 15 Achievement% 12 Wizard Run 0 Options --------- Layout 1 ASCII 0 Keyboard 0 Movement Mouse Keybinds 0 Fullscreen 1 Font 18/SmallcapsGlow Map View 55x46 Zoom Use 0% Tactical HUD 1 Map Filters NONE Filters NONE Steam 1 RUN: 621b53bb-7c6b-4dc7-97e2-5841877d44d3